bitfinex/quotes_BTCUSD_20250212
["timestamp","ask_amount","ask_price","bid_price","bid_amount"]
[1739397725044,0.00022387,97837.0,97836.0,0.5131665]
[1739397725248,0.00022387,97837.0,97836.0,0.5111665]
[1739397725405,0.00022387,97837.0,97836.0,0.5121665]
[1739397725987,0.00022387,97837.0,97836.0,0.5131665]
[1739397726168,0.00022387,97837.0,97836.0,0.5111665]
[1739397726564,0.00022387,97837.0,97836.0,0.5131665]
[1739397732741,0.15353987,97837.0,97836.0,0.5131665]
[1739397732935,0.00022387,97837.0,97836.0,0.5131665]
[1739397734199,0.00022387,97837.0,97836.0,0.5111665]
[1739397734640,0.00022387,97837.0,97836.0,0.5121665]
[1739397735055,0.00022387,97837.0,97836.0,0.5141665]
[1739397735450,0.00022387,97837.0,97836.0,0.5111665]
[1739397735625,0.00022387,97837.0,97836.0,0.5121665]
[1739397736294,0.15353987,97837.0,97836.0,0.5121665]
[1739397737291,0.00022387,97837.0,97836.0,0.5121665]
[1739397737460,0.15353987,97837.0,97836.0,0.5121665]
[1739397737799,0.29495646,97837.0,97836.0,0.5121665]
[1739397738000,0.23393987,97837.0,97836.0,0.5121665]
[1739397738362,0.23393987,97837.0,97836.0,0.5111665]
[1739397738786,0.23393987,97837.0,97836.0,0.5121665]
[1739397739193,0.23393987,97837.0,97836.0,0.5131665]
[1739397739512,0.23393987,97837.0,97836.0,0.5111665]
[1739397740946,0.15353987,97837.0,97836.0,0.5111665]
[1739397741963,0.15353987,97837.0,97836.0,0.3881665]
[1739397742393,0.00022387,97837.0,97836.0,0.3881665]
[1739397745183,0.15353987,97837.0,97836.0,0.3881665]
[1739397747335,0.00022387,97837.0,97836.0,0.388273]
[1739397748606,0.15353987,97837.0,97836.0,0.388273]
[1739397751457,0.204417,97840.0,97836.0,0.388273]
[1739397752158,0.153316,97837.0,97836.0,0.388273]
[1739397755075,0.153313,97839.0,97836.0,0.388273]
[1739397755276,0.153316,97838.0,97836.0,0.388273]
[1739397755471,0.153316,97837.0,97836.0,0.388273]
[1739397760394,0.235316,97837.0,97836.0,0.388273]
[1739397760594,0.285116,97837.0,97836.0,0.388273]
[1739397767144,0.435116,97837.0,97836.0,0.388273]
[1739397768986,0.53761965,97837.0,97836.0,0.388273]
[1739397771914,0.53761965,97837.0,97836.0,0.265273]
[1739397776288,0.6401233,97837.0,97836.0,0.265273]
[1739397776895,0.53761965,97837.0,97836.0,0.142273]
[1739397780542,0.56061965,97837.0,97836.0,0.080944]
[1739397780731,0.56061965,97837.0,97836.0,0.060501]
[1739397780954,0.303344,97819.0,97818.0,4e-07]
[1739397781126,0.59198205,97819.0,97818.0,4e-07]
[1739397781536,0.59198205,97819.0,97780.0,0.0001065]
[1739397781537,0.153389,97790.0,97780.0,0.0001065]
[1739397781996,0.153404,97781.0,97780.0,0.0001065]
[1739397782762,0.15344796,97781.0,97780.0,0.0001065]
[1739397783364,0.33795161,97781.0,97780.0,0.0001065]
[1739397783586,0.59171761,97781.0,97780.0,0.0001065]
[1739397784007,0.51095161,97781.0,97780.0,0.0001065]
[1739397784380,0.30344796,97781.0,97780.0,0.0001065]
[1739397784768,0.15344796,97781.0,97780.0,0.0001065]
[1739397784970,0.00204396,97781.0,97780.0,0.0001065]
[1739397785185,0.15344796,97781.0,97780.0,0.0001065]
[1739397785647,0.16044796,97781.0,97780.0,0.0001065]
[1739397785848,0.15344796,97781.0,97780.0,0.0001065]
[1739397786085,0.15544796,97781.0,97780.0,0.0001065]
[1739397786498,0.00204396,97781.0,97780.0,0.0828065]
[1739397786904,0.00204396,97781.0,97769.0,0.009213]
[1739397787107,0.09231657,97780.0,97770.0,0.204561]
[1739397787308,0.09231657,97780.0,97773.0,0.153416]
[1739397787540,0.09231657,97780.0,97772.0,0.153417]
[1739397787771,0.09231657,97780.0,97769.0,0.009213]
[1739397788020,0.09231657,97780.0,97770.0,0.153421]
[1739397788179,0.09331657,97780.0,97769.0,0.009213]
[1739397788468,0.153407,97779.0,97769.0,0.009213]
[1739397788815,0.09431657,97780.0,97769.0,0.009213]
[1739397789018,0.09331657,97780.0,97769.0,0.009213]
[1739397789166,0.153408,97778.0,97769.0,0.009213]
[1739397789389,0.153413,97775.0,97769.0,0.009213]
[1739397789585,0.09431657,97780.0,97769.0,0.009213]
[1739397789806,0.153407,97779.0,97770.0,0.0827]
[1739397790430,0.153408,97778.0,97770.0,0.0827]
[1739397790589,0.09431657,97780.0,97770.0,0.0827]
[1739397790789,0.153416,97774.0,97770.0,0.0827]
[1739397790990,0.204542,97779.0,97770.0,0.0827]
[1739397791560,0.205542,97779.0,97770.0,0.0827]
[1739397791766,0.204544,97778.0,97770.0,0.0827]
[1739397792012,0.153419,97771.0,97770.0,0.0827]
[1739397792168,0.153418,97772.0,97770.0,0.0827]
[1739397792565,0.153419,97771.0,97770.0,0.0827]
[1739397793647,0.204555,97773.0,97770.0,0.0827]
[1739397793788,0.153419,97771.0,97770.0,0.0827]
[1739397794589,0.153419,97771.0,97770.0,0.0837]
[1739397794846,0.153419,97771.0,97770.0,0.0827]
[1739397795205,0.153419,97771.0,97770.0,0.0838066]
[1739397795945,0.153419,97771.0,97770.0,0.0011066]
[1739397797225,0.26636617,97771.0,97770.0,0.0011066]
[1739397797445,0.26636617,97771.0,97770.0,0.0001066]
[1739397797855,0.48596617,97771.0,97770.0,0.0001066]
[1739397798297,0.48996617,97771.0,97770.0,0.0001066]
[1739397798489,0.48896617,97771.0,97770.0,0.0001066]
[1739397798902,0.49296617,97771.0,97770.0,0.0001066]
[1739397799086,0.48896617,97771.0,97770.0,0.0001066]
[1739397799675,0.46596617,97771.0,97770.0,0.0001066]
[1739397799882,0.47096617,97771.0,97770.0,0.0001066]
[1739397801183,0.46196617,97771.0,97770.0,0.0001066]
[1739397801390,0.46596617,97771.0,97770.0,0.0001066]
[1739397801958,0.46596617,97771.0,97738.0,0.15347]
[1739397801959,0.153452,97751.0,97738.0,0.15347]
[1739397802203,0.14094152,97760.0,97738.0,0.25597365]
[1739397802330,0.153453,97750.0,97738.0,0.25597365]
[1739397802534,0.14094152,97750.0,97738.0,0.10250365]
[1739397802981,0.153457,97747.0,97738.0,0.10250365]
[1739397803182,0.15350094,97747.0,97738.0,0.10250365]
[1739397803591,4.394e-05,97747.0,97738.0,0.10250365]
[1739397803786,0.153462,97744.0,97738.0,0.10250365]
[1739397803991,0.01908448,97746.0,97738.0,0.10250365]
[1739397804877,0.001,97744.0,97738.0,0.10250365]
[1739397805768,0.01908448,97745.0,97738.0,0.10250365]
[1739397806009,0.01046478,97747.0,97738.0,0.10250365]
[1739397806010,0.01908448,97743.0,97738.0,0.25597465]
[1739397806740,0.01908448,97743.0,97741.0,0.153466]
[1739397806895,0.01908448,97743.0,97739.0,0.153469]
[1739397807103,0.01908448,97743.0,97738.0,0.30713065]
[1739397807104,0.01908448,97742.0,97738.0,0.30723725]
[1739397807256,0.01908448,97742.0,97740.0,0.153468]
[1739397807578,0.01908448,97742.0,97739.0,0.204626]
[1739397807784,0.01908448,97742.0,97741.0,0.153466]
[1739397807983,0.001,97743.0,97739.0,0.204626]
[1739397808183,0.001,97743.0,97739.0,0.153468]
[1739397808434,0.001,97742.0,97738.0,0.10261025]
[1739397808610,0.001,97742.0,97741.0,0.153466]
[1739397808912,0.02012268,97742.0,97741.0,0.15337458]
[1739397809109,0.01912268,97742.0,97738.0,0.25608025]
[1739397809338,0.01912268,97742.0,97738.0,0.10261025]
[1739397809565,0.02012268,97742.0,97740.0,0.153468]
[1739397810060,0.02012268,97742.0,97741.0,0.153466]
[1739397810425,0.001,97742.0,97741.0,0.153466]
[1739397810620,0.01046478,97747.0,97740.0,0.153468]
[1739397810869,0.01046478,97747.0,97741.0,0.153466]
[1739397811006,0.001,97742.0,97739.0,0.153468]
[1739397811462,0.002,97742.0,97739.0,0.153468]
[1739397811663,0.001,97742.0,97739.0,0.153468]
[1739397811864,0.001,97742.0,97738.0,0.10261025]
[1739397812216,0.16392178,97747.0,97738.0,0.10261025]
[1739397812418,0.01046478,97747.0,97738.0,0.10261025]
[1739397812617,0.001,97742.0,97738.0,0.10261025]
[1739397812818,0.001,97742.0,97738.0,0.0001066]
[1739397812819,0.153468,97740.0,97738.0,0.0001066]
[1739397813021,0.001,97742.0,97738.0,0.0001066]
[1739397813821,0.01913772,97741.0,97738.0,0.0001066]
[1739397814783,0.01913772,97740.0,97738.0,0.0001066]
[1739397815827,0.01913772,97739.0,97738.0,0.1535776]
[1739397817672,0.02013772,97739.0,97738.0,0.1535776]
[1739397820358,0.02013772,97739.0,97738.0,0.0001066]
[1739397823432,0.02013772,97739.0,97738.0,0.1535776]
[1739397823981,0.02013772,97739.0,97738.0,0.0001066]
[1739397824817,0.001,97739.0,97738.0,0.0001066]
[1739397825719,0.001,97739.0,97738.0,0.1535776]
[1739397826504,0.001,97739.0,97738.0,0.0001066]
[1739397829521,0.001,97739.0,97738.0,0.1535776]
[1739397829723,0.001,97739.0,97738.0,0.0001066]
[1739397836347,0.02020984,97739.0,97738.0,0.0001066]
[1739397840952,0.17367884,97739.0,97738.0,0.0001066]
[1739397842047,0.154469,97739.0,97738.0,0.0001066]
[1739397843149,0.001,97739.0,97738.0,0.0001066]
[1739397844586,0.154469,97739.0,97738.0,0.0001066]
[1739397845080,0.277969,97739.0,97738.0,0.0001066]
[1739397847393,0.29716534,97739.0,97738.0,0.0001066]
[1739397847777,0.29616534,97739.0,97738.0,0.0001066]
[1739397848359,0.54866899,97739.0,97738.0,0.0001066]
[1739397848584,0.47860164,97739.0,97738.0,0.0001066]
[1739397849105,0.05163264,97739.0,97738.0,0.0001066]
[1739397849308,0.02019634,97739.0,97738.0,0.0001066]
[1739397849513,0.05087984,97739.0,97738.0,0.0001066]
[1739397849872,0.04987984,97739.0,97738.0,0.0001066]
[1739397850715,0.01919634,97739.0,97738.0,0.0001066]
[1739397850893,0.17266534,97739.0,97738.0,0.0001066]
[1739397851411,0.17566534,97739.0,97738.0,0.0001066]
[1739397851979,0.204632,97737.0,97725.0,0.153491]
[1739397852154,0.153477,97734.0,97725.0,0.25599465]
[1739397852742,0.204632,97737.0,97729.0,0.153485]
[1739397852743,0.01919634,97733.0,97729.0,0.153485]
[1739397853499,0.01919634,97732.0,97729.0,0.153485]
[1739397854206,0.01919634,97732.0,97726.0,0.204653]
[1739397854417,0.01919634,97732.0,97731.0,0.153482]
[1739397854631,0.24397344,97745.0,97735.0,0.153474]
[1739397854767,0.20484566,97741.0,97735.0,0.10250365]
[1739397854973,0.01917166,97740.0,97735.0,0.10250365]
[1739397856236,0.01917166,97739.0,97735.0,0.10250365]
[1739397858737,0.01917166,97737.0,97735.0,0.25597965]
[1739397858931,0.01917166,97737.0,97736.0,0.153474]
[1739397859132,0.01917166,97737.0,97735.0,0.10250365]
[1739397859334,0.01917166,97736.0,97735.0,0.10250365]
[1739397860376,0.00022366,97741.0,97735.0,0.10250365]
[1739397861775,0.00022366,97741.0,97736.0,0.153474]
[1739397862561,0.00022366,97741.0,97735.0,0.10250365]
[1739397863312,0.00022366,97741.0,97740.0,0.153468]
[1739397864905,0.00022366,97741.0,97740.0,0.26767104]
[1739397865118,0.00022366,97741.0,97740.0,0.26664799]
[1739397865982,0.05674666,97757.0,97740.0,0.11317999]
[1739397866153,0.29094777,97770.0,97747.0,0.153456]
[1739397866154,0.153445,97755.0,97747.0,0.153456]
[1739397866362,0.15,97763.0,97743.0,0.204618]
[1739397866572,0.204585,97759.0,97747.0,0.153456]
[1739397867105,0.204588,97758.0,97746.0,0.20461]
[1739397867312,0.153444,97756.0,97747.0,0.153455]
[1739397867894,0.153445,97755.0,97747.0,0.153455]
[1739397868880,0.002,97756.0,97747.0,0.204608]
[1739397869089,0.0801,97757.0,97749.0,0.153452]
[1739397869265,0.002,97755.0,97749.0,0.153452]
[1739397869628,0.002,97755.0,97749.0,0.153453]
[1739397869897,0.153449,97753.0,97741.0,0.10250365]
[1739397870097,0.153449,97753.0,97744.0,0.153462]
[1739397870281,0.153449,97753.0,97743.0,0.153463]
[1739397870431,0.153449,97753.0,97741.0,0.30712465]
[1739397870432,0.153449,97753.0,97744.0,0.153461]
[1739397870657,0.153446,97754.0,97744.0,0.153461]
[1739397871087,0.153446,97754.0,97745.0,0.15346]
[1739397871281,0.002,97755.0,97741.0,0.10250365]
[1739397871511,0.002,97755.0,97747.0,0.153457]
[1739397871874,0.001,97754.0,97747.0,0.153457]
[1739397872767,0.002,97755.0,97747.0,0.153457]
[1739397872921,0.001,97754.0,97747.0,0.153457]
[1739397874323,0.233542,97757.0,97747.0,0.153457]
[1739397874525,0.153444,97756.0,97745.0,0.204614]
[1739397874824,0.0801,97757.0,97741.0,0.10250365]
[1739397875016,0.0801,97757.0,97748.0,0.153455]
[1739397875220,0.002,97755.0,97748.0,0.153455]
[1739397875455,0.233541,97757.0,97748.0,0.153455]
[1739397875652,0.002,97756.0,97748.0,0.153455]
[1739397875855,0.002,97756.0,97741.0,0.10250365]
[1739397876076,0.002,97756.0,97747.0,0.153456]
[1739397876794,0.002,97756.0,97741.0,0.10250365]
[1739397877117,0.153444,97755.0,97745.0,0.153459]
[1739397877485,0.153443,97756.0,97746.0,0.153457]
[1739397877829,0.155443,97756.0,97747.0,0.153457]
[1739397877976,0.155443,97756.0,97749.0,0.153452]
[1739397877977,0.002,97756.0,97749.0,0.153452]
[1739397878191,0.002,97756.0,97749.0,0.153453]
[1739397878467,0.002,97755.0,97749.0,0.153453]
[1739397878682,0.002,97755.0,97754.0,0.153446]
[1739397879085,0.00022366,97757.0,97756.0,0.153443]
[1739397879526,0.00022366,97757.0,97756.0,0.151443]
[1739397880864,0.00022366,97757.0,97756.0,0.149443]
[1739397881495,0.00222366,97757.0,97756.0,0.149443]
[1739397882324,0.00222366,97757.0,97752.0,0.204598]
[1739397882661,0.00222366,97757.0,97754.0,0.153445]
[1739397883063,0.00222366,97757.0,97750.0,0.30710465]
[1739397883264,0.00222366,97757.0,97755.0,0.153443]
[1739397883698,0.00022366,97757.0,97755.0,0.153443]
[1739397884089,0.00022366,97757.0,97750.0,0.30710465]
[1739397884090,0.00222366,97757.0,97756.0,0.153443]
[1739397884542,0.00422366,97757.0,97756.0,0.153443]
[1739397885363,0.00022366,97757.0,97756.0,0.153443]
[1739397885513,0.00222366,97757.0,97756.0,0.153443]
[1739397887077,0.00222366,97757.0,97756.0,0.25594665]
[1739397887467,0.00222366,97757.0,97756.0,0.33764665]
[1739397888880,0.00222366,97757.0,97756.0,0.84911665]
[1739397890097,0.00222366,97757.0,97756.0,0.84922315]
[1739397891604,0.00222366,97757.0,97756.0,1.17622315]
[1739397891851,0.00022366,97757.0,97756.0,1.17622315]
[1739397892177,0.00122366,97757.0,97756.0,1.17622315]
[1739397898006,0.00122366,97757.0,97756.0,1.09452315]
[1739397900408,0.00122366,97757.0,97756.0,0.8385765]
[1739397900628,0.23126466,97757.0,97756.0,0.8385765]
[1739397900859,0.27676466,97757.0,97756.0,0.8385765]
[1739397901255,0.27676466,97757.0,97756.0,0.5115765]
[1739397901487,0.27576466,97757.0,97756.0,0.5115765]
[1739397901936,0.27576466,97757.0,97756.0,0.3885765]
[1739397902371,0.28608923,97757.0,97756.0,0.3885765]
[1739397903846,0.28808923,97757.0,97756.0,0.3885765]
[1739397904928,0.29008923,97757.0,97756.0,0.3885765]
[1739397905325,0.28608923,97757.0,97756.0,0.3885765]
[1739397906548,0.28808923,97757.0,97756.0,0.3885765]
[1739397906818,0.28808923,97757.0,97756.0,0.2655765]
[1739397911959,0.28808923,97757.0,97756.0,0.1425765]
[1739397916876,0.28808923,97757.0,97756.0,0.0195765]
[1739397921437,0.28608923,97757.0,97756.0,0.0195765]
[1739397921758,0.13264823,97757.0,97740.0,0.2050633]
[1739397921967,0.153455,97749.0,97742.0,0.153463]
[1739397922168,0.13364823,97757.0,97741.0,0.204622]
[1739397922394,0.13364823,97757.0,97742.0,0.204618]
[1739397922659,0.15345,97752.0,97740.0,0.0004403]
[1739397923173,0.204597,97753.0,97740.0,0.0004403]
[1739397923174,0.153454,97749.0,97742.0,0.153464]
[1739397923468,0.13364823,97757.0,97740.0,0.0004403]
[1739397923675,0.15346,97745.0,97740.0,0.0004403]
[1739397923901,0.13364823,97757.0,97740.0,0.0004403]
[1739397924101,0.153466,97741.0,97740.0,0.0004403]
[1739397924472,0.274666,97741.0,97740.0,0.0004403]
[1739397924661,0.37716965,97741.0,97740.0,0.0004403]
[1739397925063,0.52716965,97741.0,97740.0,0.0004403]
[1739397925266,0.54814524,97741.0,97740.0,0.0004403]
[1739397926556,0.52716965,97741.0,97740.0,0.0004403]
[1739397926764,0.52716965,97741.0,97740.0,0.0005468]
[1739397926967,0.15,97737.0,97717.0,0.2047786]
[1739397927170,0.15,97735.0,97717.0,0.00023859]
[1739397927353,0.354634,97735.0,97717.0,0.00023859]
[1739397927669,0.204634,97735.0,97717.0,0.00023859]
[1739397927867,0.153493,97724.0,97717.0,0.00023859]
[1739397928070,0.153495,97723.0,97717.0,0.15374159]
[1739397928639,0.15,97734.0,97717.0,0.20490959]
[1739397928841,0.20823377,97734.0,97717.0,0.00023859]
[1739397929058,0.153499,97720.0,97717.0,0.00023859]
[1739397929676,0.15,97732.0,97717.0,0.00023859]
[1739397931773,0.16030504,97732.0,97717.0,0.00023859]
[1739397932196,0.1535,97720.0,97717.0,0.00023859]
[1739397932578,0.01030504,97732.0,97717.0,0.00023859]
[1739397932792,0.153495,97723.0,97717.0,0.15374159]
[1739397933853,0.153495,97723.0,97717.0,0.00023859]
[1739397934081,0.153495,97723.0,97717.0,0.15374259]
[1739397934865,0.153495,97723.0,97718.0,0.153502]
[1739397935349,0.153495,97723.0,97717.0,0.15374259]
[1739397935543,0.204655,97725.0,97717.0,0.00023859]
[1739397935746,0.1535,97720.0,97717.0,0.00023859]
[1739397936003,0.153498,97722.0,97717.0,0.00023859]
[1739397936408,0.15,97735.0,97717.0,0.00023859]
[1739397936544,0.153502,97718.0,97717.0,0.00023859]
[1739397936944,0.153501,97719.0,97717.0,0.00023859]
[1739397937375,0.204645,97730.0,97717.0,0.00023859]
[1739397937580,0.153502,97719.0,97717.0,0.00023859]
[1739397937966,0.001,97718.0,97717.0,0.00023859]
[1739397938167,0.153502,97719.0,97717.0,0.00023859]
[1739397938604,0.153502,97718.0,97717.0,0.00023859]
[1739397939645,0.204647,97729.0,97717.0,0.00023859]
[1739397939851,0.153502,97718.0,97717.0,0.00023859]
[1739397940141,0.153501,97719.0,97717.0,0.00023859]
[1739397940352,0.204658,97724.0,97717.0,0.00023859]
[1739397940556,0.153502,97718.0,97717.0,0.00023859]
[1739397940727,0.154502,97718.0,97717.0,0.00023859]
[1739397940923,0.001,97718.0,97717.0,0.00023859]
[1739397941342,0.154502,97718.0,97717.0,0.00023859]
[1739397941762,0.001,97718.0,97717.0,0.00023859]
[1739397942885,0.001,97718.0,97717.0,0.15374259]
[1739397946055,0.001,97718.0,97717.0,0.00023859]
[1739397946290,0.001,97718.0,97717.0,0.15374259]
[1739397946771,0.001,97718.0,97717.0,0.14894259]
[1739397947753,0.001,97718.0,97716.0,0.153504]
[1739397948056,0.001,97718.0,97717.0,0.153504]
[1739397949245,0.001,97718.0,97717.0,0.0001066]
[1739397949526,0.001,97718.0,97717.0,0.1536106]
[1739397949745,0.00122387,97718.0,97717.0,0.1536106]
[1739397950602,0.00122387,97718.0,97717.0,0.0001066]
[1739397950864,0.15472587,97718.0,97717.0,0.0001066]
[1739397951320,0.00122387,97718.0,97717.0,0.1536106]
[1739397957656,0.00122387,97718.0,97717.0,0.25611425]
[1739397957898,0.00122387,97718.0,97717.0,0.38481425]
[1739397958146,0.00122387,97718.0,97717.0,0.86181425]
[1739397959440,0.00022387,97718.0,97717.0,0.86181425]
[1739397959665,0.00122387,97718.0,97717.0,0.86181425]
[1739397960042,0.00022387,97718.0,97717.0,0.86181425]
[1739397960453,0.00122387,97718.0,97717.0,0.88210936]
[1739397961783,0.00022387,97718.0,97717.0,0.88210936]
[1739397961975,0.00122387,97718.0,97717.0,0.88910936]
[1739397964509,0.08181841,97744.0,97718.0,0.15]
[1739397964740,0.08181841,97744.0,97743.0,0.153463]
[1739397965118,0.08181841,97754.0,97749.0,0.153453]
[1739397965355,0.08181841,97754.0,97740.0,0.204623]
[1739397965563,0.153445,97755.0,97748.0,0.153454]
[1739397965767,0.153445,97755.0,97749.0,0.153453]
[1739397965972,0.153451,97751.0,97743.0,0.003]
[1739397966150,0.153452,97751.0,97743.0,0.003]
[1739397966362,0.153452,97751.0,97745.0,0.15346]
[1739397966595,0.01058234,97757.0,97743.0,9.917e-05]
[1739397966839,0.15345,97752.0,97744.0,0.204615]
[1739397967055,0.153451,97751.0,97745.0,0.153459]
[1739397967530,0.047,97755.0,97743.0,9.917e-05]
[1739397967650,0.251594,97755.0,97743.0,9.917e-05]
[1739397967868,0.251594,97755.0,97745.0,0.15346]
[1739397968123,0.15345,97752.0,97744.0,0.153461]
[1739397968366,0.153454,97749.0,97743.0,0.15456217]
[1739397969003,0.231462,97744.0,97743.0,9.917e-05]
[1739397969661,0.078,97744.0,97743.0,9.917e-05]
[1739397969875,0.078,97744.0,97743.0,0.15356217]
[1739397970302,0.078,97744.0,97743.0,9.917e-05]
[1739397970520,0.078,97744.0,97743.0,0.00109917]
[1739397971787,0.078,97744.0,97743.0,9.917e-05]
[1739397971999,0.078,97744.0,97743.0,0.003]
[1739397974127,0.07822366,97744.0,97743.0,0.003]
[1739397976112,0.00022366,97744.0,97743.0,0.003]
[1739397976895,0.00022366,97744.0,97737.0,0.20463]
[1739397977266,0.00022366,97744.0,97739.0,0.153469]
[1739397978091,0.00022366,97744.0,97738.0,0.204628]
[1739397978522,0.00022366,97744.0,97739.0,0.153468]
[1739397978918,0.153471,97738.0,97737.0,5.857e-05]
[1739397979165,0.204618,97743.0,97737.0,5.857e-05]
[1739397979407,0.153471,97738.0,97737.0,5.857e-05]
[1739397979601,0.15347,97739.0,97737.0,5.857e-05]
[1739397980017,0.204618,97743.0,97737.0,5.857e-05]
[1739397980018,0.153463,97743.0,97737.0,5.857e-05]
[1739397980442,0.20484066,97744.0,97737.0,5.857e-05]
[1739397980666,0.153466,97742.0,97737.0,5.857e-05]
[1739397981067,0.00022366,97744.0,97739.0,0.153469]
[1739397981205,0.15368566,97744.0,97739.0,0.153469]
[1739397981626,0.15368566,97744.0,97738.0,0.153471]
[1739397981905,0.15368566,97744.0,97737.0,0.20468757]
[1739397982064,0.15368566,97744.0,97738.0,0.153471]
[1739397982286,0.00022366,97744.0,97737.0,5.857e-05]
[1739397982491,0.20483966,97744.0,97739.0,0.002]
[1739397982810,0.153466,97741.0,97737.0,5.857e-05]
[1739397983258,0.204619,97743.0,97737.0,0.00205857]
[1739397983456,0.204619,97743.0,97737.0,5.857e-05]
[1739397983457,0.153471,97738.0,97737.0,5.857e-05]
[1739397984706,0.31166947,97738.0,97737.0,5.857e-05]
[1739397984909,0.28876612,97738.0,97737.0,5.857e-05]
[1739397985111,0.278471,97738.0,97737.0,5.857e-05]
[1739397985805,0.278471,97738.0,97737.0,0.00205857]
[1739397986021,0.278471,97738.0,97737.0,5.857e-05]
[1739397986892,0.153482,97731.0,97722.0,0.153496]
[1739397987045,0.153482,97731.0,97722.0,0.15355465]
[1739397987243,0.153482,97731.0,97722.0,5.865e-05]
[1739397987454,0.125,97738.0,97722.0,5.865e-05]
[1739397987842,0.153489,97727.0,97722.0,5.865e-05]
[1739397988299,0.15349,97726.0,97722.0,5.865e-05]
[1739397988496,0.153492,97725.0,97722.0,5.865e-05]
[1739397988697,0.153495,97723.0,97722.0,5.865e-05]
[1739397988900,0.231495,97723.0,97722.0,5.865e-05]
[1739397989806,0.278495,97723.0,97722.0,5.865e-05]
[1739397990031,0.278495,97723.0,97722.0,0.00205865]
[1739397991046,0.278495,97723.0,97722.0,5.865e-05]
[1739397991953,0.278495,97723.0,97722.0,0.00105865]
[1739397993820,0.3472755,97723.0,97722.0,0.00105865]
[1739397994458,0.278495,97723.0,97722.0,0.00105865]
[1739397995703,0.278495,97723.0,97722.0,5.865e-05]
[1739397995936,0.279495,97723.0,97722.0,5.865e-05]
[1739397997240,0.278495,97723.0,97722.0,5.865e-05]
[1739397998086,0.278495,97723.0,97722.0,0.00105865]
[1739398001137,0.30727109,97723.0,97722.0,0.00105865]
[1739398001338,0.53099865,97723.0,97722.0,5.865e-05]
[1739398001769,0.53199865,97723.0,97722.0,5.865e-05]
[1739398004491,0.53099865,97723.0,97722.0,5.865e-05]
[1739398004669,0.53199865,97723.0,97722.0,5.865e-05]
[1739398005360,0.429495,97723.0,97722.0,5.865e-05]
[1739398011842,0.42971866,97723.0,97722.0,5.865e-05]
[1739398022000,0.38271866,97723.0,97722.0,5.865e-05]
[1739398022324,0.30471866,97723.0,97722.0,5.865e-05]
[1739398023678,0.30371866,97723.0,97722.0,5.865e-05]
[1739398023914,0.30371866,97723.0,97722.0,0.00105865]
[1739398024904,0.30371866,97723.0,97722.0,5.865e-05]
[1739398025035,0.30371866,97723.0,97722.0,0.00105865]
[1739398028506,0.30371866,97723.0,97722.0,5.865e-05]
[1739398028652,0.30371866,97723.0,97722.0,0.00105865]
[1739398030754,0.204657,97725.0,97722.0,0.00105865]
[1739398031161,0.153495,97723.0,97722.0,0.00105865]
[1739398032542,0.153495,97723.0,97722.0,5.865e-05]
[1739398032943,0.153495,97723.0,97722.0,0.00105865]
[1739398034161,0.204632,97737.0,97722.0,0.00105865]
[1739398034313,0.153495,97723.0,97722.0,0.00105865]
[1739398035343,0.15371866,97723.0,97722.0,0.00105865]
[1739398047805,0.15371866,97723.0,97722.0,0.00116515]
[1739398081531,0.00022366,97723.0,97722.0,0.15466115]
[1739398081920,0.00022366,97723.0,97722.0,0.00116515]
[1739398083033,0.00022366,97723.0,97722.0,0.00016515]
[1739398083881,0.00022366,97723.0,97722.0,0.15466115]
[1739398084277,0.00022366,97723.0,97722.0,0.15366115]
[1739398084668,0.00022366,97723.0,97722.0,0.15466115]
[1739398085066,0.00022366,97723.0,97722.0,0.00116515]
[1739398085975,0.00022366,97723.0,97722.0,0.00016515]
[1739398086301,0.00022366,97723.0,97722.0,0.00216515]
[1739398089539,0.15371866,97723.0,97722.0,0.00216515]
[1739398090678,0.00022366,97723.0,97722.0,0.00216515]
[1739398095675,0.00022366,97723.0,97722.0,0.15566115]
[1739398097122,0.00022366,97723.0,97722.0,0.6676648]
[1739398097942,0.00022366,97723.0,97722.0,0.68683087]
[1739398098605,0.00022366,97723.0,97722.0,0.68483087]
[1739398098802,0.00022366,97723.0,97722.0,0.68783087]
[1739398099164,0.00022366,97723.0,97722.0,0.68483087]
[1739398099378,0.00122366,97723.0,97722.0,0.6716648]
[1739398103676,0.00122366,97723.0,97722.0,0.6589648]
[1739398105312,0.00122366,97723.0,97722.0,0.333]
[1739398105548,0.00122366,97723.0,97722.0,0.486496]
[1739398107068,0.00122366,97723.0,97722.0,0.4866025]
[1739398107700,0.00122366,97723.0,97722.0,0.3331065]
[1739398107909,0.00122366,97723.0,97722.0,0.4866025]
[1739398111559,0.0806,97736.0,97722.0,0.4866025]
[1739398111759,0.153482,97731.0,97722.0,0.3331065]
[1739398111959,0.153482,97731.0,97725.0,0.153491]
[1739398112221,0.153479,97734.0,97725.0,0.153491]
[1739398112418,0.153479,97734.0,97726.0,0.15349]
[1739398113622,0.0806,97736.0,97726.0,0.004]
[1739398113824,0.234075,97736.0,97728.0,0.153487]
[1739398114227,0.153476,97735.0,97728.0,0.153487]
[1739398114900,0.0806,97736.0,97727.0,0.204651]
[1739398115098,0.153476,97735.0,97726.0,0.004]
[1739398115316,0.0806,97736.0,97726.0,0.004]
[1739398115475,0.153479,97733.0,97726.0,0.157489]
[1739398115693,0.153479,97733.0,97726.0,0.153489]
[1739398115923,0.153479,97733.0,97728.0,0.003]
[1739398116225,0.153479,97733.0,97726.0,0.153489]
[1739398116475,0.153479,97733.0,97726.0,0.156489]
[1739398116787,0.153479,97733.0,97726.0,0.153489]
[1739398116986,0.153479,97733.0,97728.0,0.004]
[1739398119642,0.20485966,97735.0,97727.0,0.153488]
[1739398119842,0.153478,97734.0,97727.0,0.153488]
[1739398120076,0.15369966,97735.0,97728.0,0.157486]
[1739398120280,0.153478,97734.0,97728.0,0.157486]
[1739398120667,0.153478,97734.0,97728.0,0.153486]
[1739398120902,0.00022366,97735.0,97722.0,0.3271065]
[1739398121113,0.153485,97730.0,97727.0,0.004]
[1739398121350,0.153485,97730.0,97723.0,0.153495]
[1739398121467,0.153485,97730.0,97722.0,0.5317675]
[1739398121674,0.153485,97730.0,97724.0,0.153493]
[1739398122640,0.153479,97733.0,97722.0,0.5317675]
[1739398122854,0.20485866,97735.0,97722.0,0.5317675]
[1739398123057,0.00022366,97735.0,97730.0,0.153482]
[1739398124651,0.00022366,97735.0,97730.0,0.157482]
[1739398125918,0.00022366,97735.0,97730.0,0.004]